Workbook

Sheet Sheet1
A1: 附件：兴仁市2024年公开招聘事业单位工作人员面试成绩汇总表
A2: 序号 | B2: 准考证号 | C2: 性别 | D2: 岗位代码 | E2: 是否符合加分 | F2: 加分条件 | G2: 加分分值 | H2: 笔试考分 | I2: 笔试考分÷1.5+加分后成绩 | J2: 笔试环节排名 | K2: 笔试环节成绩×60% | L2: 面试候考室 | M2: 面试抽签号 | N2: 面试分数 | O2: 面试分数×40% | P2: 总成绩
A3: 1 | B3: 2471305012608 | C3: 女 | D3: 001 | E3: 否 | H3: 106.73 | I3: 71.15 | J3: 3 | K3: =I3*0.6 -> 42.69 | L3: 07 | M3: 9 | N3: 82.80 | O3: =N3*0.4 -> 33.12 | P3: =K3+O3 -> 75.81
A4: 2 | B4: 2471303010625 | C4: 男 | D4: 001 | E4: 是 | F4: 少数民族 | G4: 2 | H4: 109.36 | I4: 74.91 | J4: 2 | K4: 44.95 | L4: 07 | M4: 6 | N4: 74.80 | O4: 29.92 | P4: 74.87
A5: 3 | B5: 2471301011712 | C5: 男 | D5: 001 | E5: 是 | F5: 少数民族 | G5: 2 | H5: 114.36 | I5: 78.24 | J5: 1 | K5: 46.94 | L5: 07 | M5: 18 | N5: 60.60 | O5: 24.24 | P5: 71.18
A6: 4 | B6: 2471306014724 | C6: 男 | D6: 002 | E6: 否 | H6: 98.76 | I6: 65.84 | J6: 1 | K6: 39.50 | L6: 02 | M6: 20 | N6: 73.40 | O6: 29.36 | P6: 68.86
A7: 5 | B7: 2471307010928 | C7: 男 | D7: 002 | E7: 否 | H7: 97.41 | I7: 64.94 | J7: 2 | K7: 38.96 | L7: 02 | M7: 27 | N7: 71.60 | O7: 28.64 | P7: 67.60
A8: 6 | B8: 2471306010813 | C8: 女 | D8: 002 | E8: 是 | F8: 1.少数民族考生 | G8: 2 | H8: 90.36 | I8: 62.24 | J8: 4 | K8: 37.34 | L8: 02 | M8: 15 | N8: 65.60 | O8: 26.24 | P8: 63.58
A9: 7 | B9: 2471302012414 | C9: 女 | D9: 003 | E9: 是 | F9: 1.少数民族考生 | G9: 2 | H9: 104.40 | I9: 71.60 | J9: 1 | K9: 42.96 | L9: 02 | M9: 10 | N9: 80.40 | O9: 32.16 | P9: 75.12
A10: 8 | B10: 2471305012107 | C10: 女 | D10: 003 | E10: 否 | H10: 97.16 | I10: 64.77 | J10: 3 | K10: 38.86 | L10: 02 | M10: 18 | N10: 69.40 | O10: 27.76 | P10: 66.62
A11: 9 | B11: 2471302012818 | C11: 男 | D11: 003 | E11: 否 | H11: 101.50 | I11: 67.67 | J11: 2 | K11: 40.60 | L11: 02 | M11: 21 | N11: 64.80 | O11: 25.92 | P11: 66.52
A12: 10 | B12: 2471301011523 | C12: 女 | D12: 004 | E12: 是 | F12: 1.少数民族考生 | G12: 2 | H12: 100.32 | I12: 68.88 | J12: 1 | K12: 41.33 | L12: 02 | M12: 26 | N12: 71.40 | O12: 28.56 | P12: 69.89
A13: 11 | B13: 2471305010106 | C13: 女 | D13: 004 | E13: 否 | H13: 94.19 | I13: 62.79 | J13: 2 | K13: 37.68 | L13: 02 | M13: 16 | N13: 78.00 | O13: 31.20 | P13: 68.88
A14: 12 | B14: 2471305010911 | C14: 女 | D14: 005 | E14: 否 | H14: 105.73 | I14: 70.49 | J14: 1 | K14: 42.29 | L14: 02 | M14: 30 | N14: 71.80 | O14: 28.72 | P14: 71.01
A15: 13 | B15: 2471303013014 | C15: 女 | D15: 007 | E15: 否 | H15: 104.73 | I15: 69.82 | J15: 1 | K15: 41.89 | L15: 02 | M15: 17 | N15: 73.00 | O15: 29.20 | P15: 71.09
A16: 14 | B16: 2471307013408 | C16: 女 | D16: 007 | E16: 是 | F16: 1.少数民族考生 | G16: 2 | H16: 98.85 | I16: 67.90 | J16: 2 | K16: 40.74 | L16: 02 | M16: 19 | N16: 75.20 | O16: 30.08 | P16: 70.82
A17: 15 | B17: 2471306011321 | C17: 男 | D17: 007 | E17: 否 | H17: 100.00 | I17: 66.67 | J17: 5 | K17: 40.00 | L17: 02 | M17: 28 | N17: 76.20 | O17: 30.48 | P17: 70.48
A18: 16 | B18: 2471308011311 | C18: 男 | D18: 007 | E18: 是 | F18: 1.少数民族考生 | G18: 2 | H18: 97.73 | I18: 67.15 | J18: 3 | K18: 40.29 | L18: 02 | M18: 6 | N18: 74.40 | O18: 29.76 | P18: 70.05
A19: 17 | B19: 2471303012816 | C19: 女 | D19: 007 | E19: 否 | H19: 100.70 | I19: 67.13 | J19: 4 | K19: 40.28 | L19: 02 | M19: 29 | N19: 66.20 | O19: 26.48 | P19: 66.76
A20: 18 | B20: 2471307013315 | C20: 女 | D20: 007 | E20: 否 | H20: 98.90 | I20: 65.93 | J20: 6 | K20: 39.56 | L20: 02 | M20: 23 | N20: 65.80 | O20: 26.32 | P20: 65.88
A21: 19 | B21: 2471303012929 | C21: 女 | D21: 008 | E21: 否 | H21: 110.93 | I21: 73.95 | J21: 1 | K21: 44.37 | L21: 02 | M21: 22 | N21: 77.60 | O21: 31.04 | P21: 75.41
A22: 20 | B22: 2471307010208 | C22: 女 | D22: 008 | E22: 否 | H22: 102.19 | I22: 68.13 | J22: 2 | K22: 40.88 | L22: 02 | M22: 12 | N22: 77.00 | O22: 30.80 | P22: 71.68
A23: 21 | B23: 2471302012710 | C23: 男 | D23: 008 | E23: 否 | H23: 99.05 | I23: 66.03 | J23: 3 | K23: 39.62 | L23: 02 | M23: 3 | N23: 54.60 | O23: 21.84 | P23: 61.46
A24: 22 | B24: 2471305013419 | C24: 女 | D24: 009 | E24: 是 | F24: 1.少数民族考生 | G24: 2 | H24: 105.79 | I24: 72.53 | J24: 2 | K24: 43.52 | L24: 02 | M24: 8 | N24: 77.60 | O24: 31.04 | P24: 74.56
A25: 23 | B25: 2471305012801 | C25: 男 | D25: 009 | E25: 无 | H25: 110.77 | I25: 73.85 | J25: 1 | K25: 44.31 | L25: 02 | M25: 13 | N25: 70.60 | O25: 28.24 | P25: 72.55
A26: 24 | B26: 2471305012209 | C26: 女 | D26: 009 | E26: 是 | F26: 1.少数民族考生 | G26: 2 | H26: 101.06 | I26: 69.37 | J26: 3 | K26: 41.62 | L26: 02 | M26: 11 | N26: 66.60 | O26: 26.64 | P26: 68.26
A27: 25 | B27: 2471307013605 | C27: 男 | D27: 010 | E27: 是 | F27: 1.少数民族考生 | G27: 2 | H27: 98.91 | I27: 67.94 | J27: 1 | K27: 40.76 | L27: 02 | M27: 7 | N27: 73.60 | O27: 29.44 | P27: 70.20
A28: 26 | B28: 2471304010526 | C28: 女 | D28: 010 | E28: 是 | F28: 1.少数民族考生 | G28: 2 | H28: 94.66 | I28: 65.11 | J28: 2 | K28: 39.06 | L28: 02 | M28: 14 | N28: 75.20 | O28: 30.08 | P28: 69.14
A29: 27 | B29: 2471307012820 | C29: 女 | D29: 010 | E29: 是 | F29: 1.少数民族考生 | G29: 2 | H29: 90.83 | I29: 62.55 | J29: 4 | K29: 37.53 | L29: 02 | M29: 5 | N29: 74.20 | O29: 29.68 | P29: 67.21
A30: 28 | B30: 2471306014307 | C30: 女 | D30: 011 | E30: 是 | F30: 1.少数民族考生 | G30: 2 | H30: 105.18 | I30: 72.12 | J30: 3 | K30: 43.27 | L30: 02 | M30: 1 | N30: 79.00 | O30: 31.60 | P30: 74.87
A31: 29 | B31: 2471306014616 | C31: 男 | D31: 011 | E31: 是 | F31: 2入伍时为兴仁市户籍或兴仁市生源的退役士兵报考非定向招聘退役士兵岗位 | G31: 10 | H31: 93.2 | I31: 72.13 | J31: 2 | K31: 43.28 | L31: 02 | M31: 2 | N31: 72.00 | O31: 28.80 | P31: 72.08
A32: 30 | B32: 2471305013220 | C32: 女 | D32: 011 | E32: 是 | F32: 1.少数民族考生 | G32: 2 | H32: 107.77 | I32: 73.85 | J32: 1 | K32: 44.31 | L32: 02 | M32: 9 | N32: 65.60 | O32: 26.24 | P32: 70.55
A33: 31 | B33: 2471304011318 | C33: 男 | D33: 012 | E33: 是 | F33: 入伍时为兴仁市户籍或兴仁市生源的退役士兵报考非定向招聘退役士兵岗位 | G33: 10 | H33: 101.12 | I33: 77.41 | J33: 1 | K33: 46.45 | L33: 07 | M33: 28 | N33: 72.20 | O33: 28.88 | P33: 75.33
A34: 32 | B34: 2471306012001 | C34: 男 | D34: 012 | E34: 是 | F34: 入伍时为兴仁市户籍或兴仁市生源的退役士兵报考非定向招聘退役士兵岗位 | G34: 10 | H34: 90.62 | I34: 70.41 | J34: 2 | K34: 42.25 | L34: 07 | M34: 10 | N34: 73.40 | O34: 29.36 | P34: 71.61
A35: 33 | B35: 2471306010526 | C35: 男 | D35: 012 | E35: 是 | F35: 少数民族考生 | G35: 2 | H35: 99.73 | I35: 68.49 | J35: 3 | K35: 41.09 | L35: 07 | M35: 21 | N35: 67.60 | O35: 27.04 | P35: 68.13
A36: 34 | B36: 2471305010207 | C36: 女 | D36: 013 | E36: 是 | F36: 少数民族考生 | G36: 2 | H36: 100.26 | I36: 68.84 | J36: 1 | K36: 41.30 | L36: 07 | M36: 3 | N36: 77.00 | O36: 30.80 | P36: 72.10
A37: 35 | B37: 2471304013323 | C37: 女 | D37: 013 | E37: 否 | H37: 99.09 | I37: 66.06 | J37: 3 | K37: 39.64 | L37: 07 | M37: 29 | N37: 74.20 | O37: 29.68 | P37: 69.32
A38: 36 | B38: 2471304011307 | C38: 女 | D38: 013 | E38: 否 | H38: 101.93 | I38: 67.95 | J38: 2 | K38: 40.77 | L38: 07 | M38: 27 | N38: 67.40 | O38: 26.96 | P38: 67.73
A39: 37 | B39: 2471305012903 | C39: 女 | D39: 014 | E39: 是 | F39: 1.少数民族考生 | G39: 2 | H39: 105.07 | I39: 72.05 | J39: 1 | K39: 43.23 | L39: 07 | M39: 4 | N39: 75.40 | O39: 30.16 | P39: 73.39
A40: 38 | B40: 2471306013703 | C40: 男 | D40: 014 | E40: 是 | F40: 2.入伍时为兴仁市户籍或兴仁市生源的退役士兵报考非定向招聘退役士兵岗位 | G40: 10 | H40: 91.96 | I40: 71.31 | J40: 3 | K40: 42.78 | L40: 07 | M40: 11 | N40: 71.40 | O40: 28.56 | P40: 71.34
A41: 39 | B41: 2471306014006 | C41: 男 | D41: 014 | E41: 是 | F41: 1.少数民族考生 | G41: 2 | H41: 104.00 | I41: 71.33 | J41: 2 | K41: 42.80 | L41: 07 | M41: 12 | N41: 69.40 | O41: 27.76 | P41: 70.56
A42: 40 | B42: 2471303011027 | C42: 女 | D42: 015 | E42: 是 | F42: 1.少数民族考生 | G42: 2 | H42: 105.11 | I42: 72.07 | J42: 1 | K42: 43.24 | L42: 03 | M42: 28 | N42: 77.00 | O42: 30.80 | P42: 74.04
A43: 41 | B43: 2471306010319 | C43: 女 | D43: 015 | E43: 是 | F43: 1.少数民族考生 | G43: 2 | H43: 98.82 | I43: 67.88 | J43: 3 | K43: 40.73 | L43: 03 | M43: 21 | N43: 80.80 | O43: 32.32 | P43: 73.05
A44: 42 | B44: 2471305012411 | C44: 男 | D44: 015 | E44: 否 | H44: 102.27 | I44: 68.18 | J44: 2 | K44: 40.91 | L44: 03 | M44: 1 | N44: 72.40 | O44: 28.96 | P44: 69.87
A45: 43 | B45: 2471308011123 | C45: 男 | D45: 016 | E45: 是 | F45: 1.少数民族考生 | G45: 2 | H45: 101.00 | I45: 69.33 | J45: 2 | K45: 41.60 | L45: 03 | M45: 15 | N45: 74.60 | O45: 29.84 | P45: 71.44
A46: 44 | B46: 2471305013122 | C46: 男 | D46: 016 | E46: 否 | H46: 103.50 | I46: 69.00 | J46: 3 | K46: 41.40 | L46: 03 | M46: 27 | N46: 74.40 | O46: 29.76 | P46: 71.16
A47: 45 | B47: 2471302013011 | C47: 女 | D47: 016 | E47: 是 | F47: 1.少数民族考生 | G47: 2 | H47: 101.11 | I47: 69.41 | J47: 1 | K47: 41.64 | L47: 03 | M47: 25 | N47: 73.20 | O47: 29.28 | P47: 70.92
A48: 46 | B48: 2471308011322 | C48: 男 | D48: 017 | E48: 是 | F48: 1.少数民族考生 | G48: 2 | H48: 95.46 | I48: 65.64 | J48: 1 | K48: 39.38 | L48: 03 | M48: 2 | N48: 78.60 | O48: 31.44 | P48: 70.82
A49: 47 | B49: 2471305013716 | C49: 男 | D49: 017 | E49: 否 | H49: 94.94 | I49: 63.29 | J49: 2 | K49: 37.98 | L49: 03 | M49: 11 | N49: 79.20 | O49: 31.68 | P49: 69.66
A50: 48 | B50: 2471308010119 | C50: 女 | D50: 017 | E50: 否 | H50: 94.16 | I50: 62.77 | J50: 3 | K50: 37.66 | L50: 03 | M50: 3 | N50: 72.20 | O50: 28.88 | P50: 66.54
A51: 49 | B51: 2471303011230 | C51: 女 | D51: 018 | E51: 否 | H51: 105.68 | I51: 70.45 | J51: 1 | K51: 42.27 | L51: 03 | M51: 14 | N51: 72.60 | O51: 29.04 | P51: 71.31
A52: 50 | B52: 2471303012630 | C52: 男 | D52: 018 | E52: 否 | H52: 94.99 | I52: 63.33 | J52: 3 | K52: 38.00 | L52: 03 | M52: 7 | N52: 81.20 | O52: 32.48 | P52: 70.48
A53: 51 | B53: 2471306014725 | C53: 女 | D53: 018 | E53: 否 | H53: 95.31 | I53: 63.54 | J53: 2 | K53: 38.12 | L53: 03 | M53: 19 | N53: 73.00 | O53: 29.20 | P53: 67.32
A54: 52 | B54: 2471303010515 | C54: 男 | D54: 019 | E54: 否 | H54: 110.54 | I54: 73.69 | J54: 1 | K54: 44.22 | L54: 03 | M54: 16 | N54: 80.20 | O54: 32.08 | P54: 76.30
A55: 53 | B55: 2471303013607 | C55: 女 | D55: 019 | E55: 否 | H55: 106.86 | I55: 71.24 | J55: 3 | K55: 42.74 | L55: 03 | M55: 5 | N55: 77.80 | O55: 31.12 | P55: 73.86
A56: 54 | B56: 2471304010110 | C56: 男 | D56: 019 | E56: 是 | F56: 少数民族 | G56: 2 | H56: 107.03 | I56: 73.35 | J56: 2 | K56: 44.01 | L56: 03 | M56: 10 | N56: 69.60 | O56: 27.84 | P56: 71.85
A57: 55 | B57: 2471305010825 | C57: 女 | D57: 020 | E57: 是 | F57: 1.少数民族考生 | G57: 2 | H57: 111.07 | I57: 76.05 | J57: 1 | K57: 45.63 | L57: 03 | M57: 30 | N57: 79.60 | O57: 31.84 | P57: 77.47
A58: 56 | B58: 2471303014019 | C58: 女 | D58: 020 | E58: 是 | F58: 1.少数民族考生 | G58: 2 | H58: 104.74 | I58: 71.83 | J58: 3 | K58: 43.10 | L58: 03 | M58: 24 | N58: 79.00 | O58: 31.60 | P58: 74.70
A59: 57 | B59: 2471305012506 | C59: 男 | D59: 020 | E59: 否 | H59: 109.56 | I59: 73.04 | J59: 2 | K59: 43.82 | L59: 03 | M59: 26 | N59: 75.00 | O59: 30.00 | P59: 73.82
A60: 58 | B60: 2471301015616 | C60: 女 | D60: 021 | E60: 否 | H60: 107.98 | I60: 71.99 | J60: 3 | K60: 43.19 | L60: 03 | M60: 20 | N60: 76.80 | O60: 30.72 | P60: 73.91
A61: 59 | B61: 2471306012014 | C61: 男 | D61: 021 | E61: 否 | H61: 106.12 | I61: 70.75 | J61: 5 | K61: 42.45 | L61: 03 | M61: 8 | N61: 76.20 | O61: 30.48 | P61: 72.93
A62: 60 | B62: 2471302012304 | C62: 女 | D62: 021 | E62: 是 | F62: 1.少数民族考生 | G62: 2 | H62: 103.97 | I62: 71.31 | J62: 4 | K62: 42.79 | L62: 03 | M62: 12 | N62: 73.60 | O62: 29.44 | P62: 72.23
A63: 61 | B63: 2471301012307 | C63: 男 | D63: 021 | E63: 否 | H63: 108.26 | I63: 72.17 | J63: 2 | K63: 43.30 | L63: 03 | M63: 13 | N63: 71.20 | O63: 28.48 | P63: 71.78
A64: 62 | B64: 2471307013405 | C64: 男 | D64: 021 | E64: 否 | H64: 108.47 | I64: 72.31 | J64: 1 | K64: 43.39 | L64: 03 | M64: 22 | N64: 66.60 | O64: 26.64 | P64: 70.03
A65: 63 | B65: 2471302012008 | C65: 男 | D65: 021 | E65: 是 | F65: 1.少数民族考生 | G65: 2 | H65: 101.74 | I65: 69.83 | J65: 6 | K65: 41.90 | L65: 03 | M65: 4 | N65: 67.20 | O65: 26.88 | P65: 68.78
A66: 64 | B66: 2471306014301 | C66: 女 | D66: 022 | E66: 是 | F66: 1.少数民族考生 | G66: 2 | H66: 104.60 | I66: 71.73 | J66: 1 | K66: 43.04 | L66: 03 | M66: 23 | N66: 78.80 | O66: 31.52 | P66: 74.56
A67: 65 | B67: 2471306011903 | C67: 男 | D67: 022 | E67: 否 | H67: 98.61 | I67: 65.74 | J67: 3 | K67: =I67*0.6 -> 39.44 | L67: 03 | M67: 29 | N67: 75.60 | O67: =N67*0.4 -> 30.24 | P67: =K67+O67 -> 69.68
A68: 66 | B68: 2471304013618 | C68: 女 | D68: 022 | E68: 否 | H68: 101.29 | I68: 67.53 | J68: 2 | K68: 40.52 | L68: 03 | M68: 9 | N68: 72.20 | O68: 28.88 | P68: 69.40
A69: 67 | B69: 2471307013421 | C69: 男 | D69: 023 | E69: 否 | H69: 107.69 | I69: 71.79 | J69: 1 | K69: 43.08 | L69: 03 | M69: 18 | N69: 79.20 | O69: 31.68 | P69: 74.76
A70: 68 | B70: 2471307011821 | C70: 女 | D70: 023 | E70: 是 | F70: 1.少数民族考生 | G70: 2 | H70: 99.91 | I70: 68.61 | J70: 2 | K70: 41.16 | L70: 03 | M70: 17 | N70: 76.80 | O70: 30.72 | P70: 71.88
A71: 69 | B71: 2471302013618 | C71: 女 | D71: 023 | E71: 否 | H71: 100.26 | I71: 66.84 | J71: 3 | K71: 40.10 | L71: 03 | M71: 6 | N71: 70.40 | O71: 28.16 | P71: 68.26
A72: 70 | B72: 2471303013130 | C72: 女 | D72: 024 | E72: 是 | F72: 1.少数民族考生 | G72: 2 | H72: 94.20 | I72: 64.80 | J72: 1 | K72: 38.88 | L72: 02 | M72: 4 | N72: 73.60 | O72: 29.44 | P72: 68.32
A73: 71 | B73: 2471305011827 | C73: 男 | D73: 024 | E73: 否 | H73: 95.16 | I73: 63.44 | J73: 2 | K73: 38.06 | L73: 02 | M73: 25 | N73: 74.00 | O73: 29.60 | P73: 67.66
A74: 72 | B74: 2471304011015 | C74: 男 | D74: 024 | E74: 否 | H74: 94.89 | I74: 63.26 | J74: 3 | K74: 37.96 | L74: 02 | M74: 24 | N74: 68.20 | O74: 27.28 | P74: 65.24
A75: 73 | B75: 2471307011905 | C75: 男 | D75: 025 | E75: 是 | F75: 2.入伍时为兴仁市户籍或兴仁市生源的退役士兵报考非定向招聘退役士兵岗位 | G75: 10 | H75: 104.77 | I75: 79.85 | J75: 1 | K75: 47.91 | L75: 04 | M75: 9 | N75: 79.62 | O75: 31.85 | P75: 79.76
A76: 74 | B76: 2471303010205 | C76: 男 | D76: 025 | E76: 否 | H76: 109.18 | I76: 72.79 | J76: 2 | K76: 43.67 | L76: 04 | M76: 19 | N76: 82.04 | O76: 32.82 | P76: 76.49
A77: 75 | B77: 2471307011120 | C77: 男 | D77: 025 | E77: 否 | H77: 98.52 | I77: 65.68 | J77: 4 | K77: 39.41 | L77: 04 | M77: 7 | N77: 74.16 | O77: 29.66 | P77: 69.07
A78: 76 | B78: 2471305010602 | C78: 女 | D78: 026 | E78: 否 | H78: 104.73 | I78: 69.82 | J78: 2 | K78: 41.89 | L78: 04 | M78: 17 | N78: 85.08 | O78: 34.03 | P78: 75.92
A79: 77 | B79: 2471304013309 | C79: 男 | D79: 026 | E79: 否 | H79: 108.03 | I79: 72.02 | J79: 1 | K79: 43.21 | L79: 04 | M79: 26 | N79: 77.22 | O79: 30.89 | P79: 74.10
A80: 78 | B80: 2471306014527 | C80: 女 | D80: 026 | E80: 是 | F80: 1.少数民族考生 | G80: 2 | H80: 101.26 | I80: 69.51 | J80: 3 | K80: 41.70 | L80: 04 | M80: 16 | N80: 74.70 | O80: 29.88 | P80: 71.58
A81: 79 | B81: 2471302010518 | C81: 女 | D81: 027 | E81: 否 | H81: 95.61 | I81: 63.74 | J81: 3 | K81: 38.24 | L81: 04 | M81: 6 | N81: 77.96 | O81: 31.18 | P81: 69.43
A82: 80 | B82: 2471306010730 | C82: 男 | D82: 027 | E82: 是 | F82: 1.少数民族考生 | G82: 2 | H82: 92.65 | I82: 63.77 | J82: 2 | K82: 38.26 | L82: 04 | M82: 18 | N82: 63.94 | O82: 25.58 | P82: 63.84
A83: 81 | B83: 2471304010830 | C83: 男 | D83: 027 | E83: 是 | F83: 1.少数民族考生 | G83: 2 | H83: 100.47 | I83: 68.98 | J83: 1 | K83: 41.39 | L83: 04 | M83: 21 | N83: 54.70 | O83: 21.88 | P83: 63.27
A84: 82 | B84: 2471308011318 | C84: 女 | D84: 028 | E84: 是 | F84: 少数民族考生 | G84: 2 | H84: 87.42 | I84: 60.28 | J84: 1 | K84: 36.17 | L84: 04 | M84: 8 | N84: 77.20 | O84: 30.88 | P84: 67.05
A85: 83 | B85: 2471301013812 | C85: 男 | D85: 028 | E85: 否 | H85: 86.02 | I85: 57.35 | J85: 2 | K85: 34.41 | L85: 04 | M85: 23 | N85: 74.98 | O85: 29.99 | P85: 64.40
A86: 84 | B86: 2471305012917 | C86: 男 | D86: 028 | E86: 否 | H86: 81.20 | I86: 54.13 | J86: 3 | K86: 32.48 | L86: 04 | M86: 14 | N86: 71.40 | O86: 28.56 | P86: 61.04
A87: 85 | B87: 2471302010619 | C87: 女 | D87: 029 | E87: 否 | H87: 94.29 | I87: 62.86 | J87: 1 | K87: 37.72 | L87: 04 | M87: 10 | N87: 78.42 | O87: 31.37 | P87: 69.08
A88: 86 | B88: 2471307011327 | C88: 男 | D88: 029 | E88: 否 | H88: 93.47 | I88: 62.31 | J88: 2 | K88: 37.39 | L88: 04 | M88: 5 | N88: 70.32 | O88: 28.13 | P88: 65.52
A89: 87 | B89: 2471308010325 | C89: 男 | D89: 030 | E89: 否 | H89: 87.30 | I89: 58.20 | J89: 1 | K89: 34.92 | L89: 04 | M89: 12 | N89: 78.96 | O89: 31.58 | P89: 66.50
A90: 88 | B90: 2471301013829 | C90: 男 | D90: 031 | E90: 是 | F90: 1.少数民族考生 | G90: 2 | H90: 107.11 | I90: 73.41 | J90: 2 | K90: 44.04 | L90: 04 | M90: 11 | N90: 84.14 | O90: 33.66 | P90: 77.70
A91: 89 | B91: 2471303013524 | C91: 女 | D91: 031 | E91: 是 | F91: 1.少数民族考生 | G91: 2 | H91: 107.03 | I91: 73.35 | J91: 3 | K91: 44.01 | L91: 04 | M91: 13 | N91: 80.18 | O91: 32.07 | P91: 76.08
A92: 90 | B92: 2471302011202 | C92: 女 | D92: 031 | E92: 是 | F92: 1.少数民族考生 | G92: 2 | H92: 108.56 | I92: 74.37 | J92: 1 | K92: 44.62 | L92: 04 | M92: 20 | N92: 73.08 | O92: 29.23 | P92: 73.86
A93: 91 | B93: 2471302012815 | C93: 男 | D93: 032 | E93: 是 | F93: 1.少数民族考生 | G93: 2 | H93: 102.91 | I93: 70.61 | J93: 2 | K93: 42.36 | L93: 04 | M93: 2 | N93: 78.08 | O93: 31.23 | P93: 73.60
A94: 92 | B94: 2471303011610 | C94: 男 | D94: 032 | E94: 否 | H94: 107.00 | I94: 71.33 | J94: 1 | K94: 42.80 | L94: 04 | M94: 3 | N94: 75.28 | O94: 30.11 | P94: 72.91
A95: 93 | B95: 2471303011809 | C95: 女 | D95: 032 | E95: 否 | H95: 95.73 | I95: 63.82 | J95: 4 | K95: 38.29 | L95: 04 | M95: 25 | N95: 78.80 | O95: 31.52 | P95: 69.81
A96: 94 | B96: 2471308010519 | C96: 男 | D96: 033 | E96: 否 | H96: 100.16 | I96: 66.77 | J96: 1 | K96: 40.06 | L96: 04 | M96: 4 | N96: 79.20 | O96: 31.68 | P96: 71.74
A97: 95 | B97: 2471301014725 | C97: 女 | D97: 033 | E97: 否 | H97: 92.42 | I97: 61.61 | J97: 3 | K97: 36.97 | L97: 04 | M97: 1 | N97: 81.66 | O97: 32.66 | P97: 69.63
A98: 96 | B98: 2471306012412 | C98: 女 | D98: 033 | E98: 否 | H98: 95.26 | I98: 63.51 | J98: 2 | K98: 38.10 | L98: 04 | M98: 24 | N98: 76.04 | O98: 30.42 | P98: 68.52
A99: 97 | B99: 2471303011403 | C99: 男 | D99: 034 | E99: 否 | H99: 93.12 | I99: 62.08 | J99: 1 | K99: 37.25 | L99: 04 | M99: 15 | N99: 68.94 | O99: 27.58 | P99: 64.82
A100: 98 | B100: 2471304010912 | C100: 女 | D100: 035 | E100: 否 | H100: 97.82 | I100: 65.21 | J100: 1 | K100: 39.13 | L100: 04 | M100: 22 | N100: 71.70 | O100: 28.68 | P100: 67.81
A101: 99 | B101: 2471304010328 | C101: 女 | D101: 036 | E101: 否 | H101: 99.33 | I101: 66.22 | J101: 2 | K101: 39.73 | L101: 05 | M101: 3 | N101: 83.60 | O101: 33.44 | P101: 73.17
A102: 100 | B102: 2471305013205 | C102: 男 | D102: 036 | E102: 否 | H102: 101.73 | I102: 67.82 | J102: 1 | K102: 40.69 | L102: 05 | M102: 15 | N102: 75.80 | O102: 30.32 | P102: 71.01
A103: 101 | B103: 2471303010721 | C103: 女 | D103: 036 | E103: 是 | F103: 少数民族考生 | G103: 2 | H103: 96.26 | I103: 66.17 | J103: 3 | K103: 39.70 | L103: 05 | M103: 16 | N103: 69.20 | O103: 27.68 | P103: 67.38
A104: 102 | B104: 2471306012918 | C104: 男 | D104: 037 | E104: 否 | H104: 106.94 | I104: 71.29 | J104: 1 | K104: 42.78 | L104: 05 | M104: 22 | N104: 77.20 | O104: =N104*0.4 -> 30.88 | P104: 73.66
A105: 103 | B105: 2471302013420 | C105: 女 | D105: 037 | E105: 是 | F105: 少数民族考生 | G105: 2 | H105: 99.95 | I105: 68.63 | J105: 3 | K105: 41.18 | L105: 05 | M105: 7 | N105: 74.60 | O105: =N105*0.4 -> 29.84 | P105: 71.02
A106: 104 | B106: 2471301012821 | C106: 男 | D106: 037 | E106: 否 | H106: 102.59 | I106: 68.39 | J106: 4 | K106: 41.04 | L106: 05 | M106: 26 | N106: 68.20 | O106: 27.28 | P106: 68.32
A107: 105 | B107: 2471304012708 | C107: 男 | D107: 038 | E107: 是 | F107: 1.少数民族考生 | G107: 2 | H107: 108.76 | I107: 74.51 | J107: 1 | K107: 44.70 | L107: 05 | M107: 17 | N107: 71.40 | O107: 28.56 | P107: 73.26
A108: 106 | B108: 2471302012928 | C108: 女 | D108: 038 | E108: 否 | H108: 96.15 | I108: 64.10 | J108: 3 | K108: 38.46 | L108: 05 | M108: 11 | N108: 76.20 | O108: 30.48 | P108: 68.94
A109: 107 | B109: 2471302013009 | C109: 女 | D109: 038 | E109: 否 | H109: 96.05 | I109: 64.03 | J109: 4 | K109: 38.42 | L109: 05 | M109: 21 | N109: 66.20 | O109: 26.48 | P109: 64.90
A110: 108 | B110: 2471302011128 | C110: 男 | D110: 039 | E110: 是 | F110: 1.少数民族考生 | G110: 2 | H110: 84.78 | I110: 58.52 | J110: 1 | K110: 35.11 | L110: 05 | M110: 2 | N110: 77.20 | O110: 30.88 | P110: 65.99
A111: 109 | B111: 2471305011405 | C111: 男 | D111: 039 | E111: 是 | F111: 1.少数民族考生 | G111: 2 | H111: 82.75 | I111: 57.17 | J111: 3 | K111: 34.30 | L111: 05 | M111: 6 | N111: 77.00 | O111: 30.80 | P111: 65.10
A112: 110 | B112: 2471301014415 | C112: 男 | D112: 039 | E112: 否 | H112: 86.55 | I112: 57.70 | J112: 2 | K112: 34.62 | L112: 05 | M112: 29 | N112: 71.60 | O112: 28.64 | P112: 63.26
A113: 111 | B113: 2471305011507 | C113: 男 | D113: 040 | E113: 否 | H113: 103.09 | I113: 68.73 | J113: 1 | K113: 41.24 | L113: 05 | M113: 4 | N113: 72.00 | O113: 28.80 | P113: 70.04
A114: 112 | B114: 2471301014801 | C114: 男 | D114: 040 | E114: 是 | F114: 少数民族考生 | G114: 2 | H114: 97.22 | I114: 66.81 | J114: 2 | K114: 40.09 | L114: 05 | M114: 20 | N114: 70.80 | O114: 28.32 | P114: 68.41
A115: 113 | B115: 2471303011223 | C115: 男 | D115: 040 | E115: 否 | H115: 97.96 | I115: 65.31 | J115: 3 | K115: 39.19 | L115: 05 | M115: 23 | N115: 68.20 | O115: 27.28 | P115: 66.47
A116: 114 | B116: 2471305010921 | C116: 女 | D116: 041 | E116: 否 | H116: 106.74 | I116: 71.16 | J116: 1 | K116: 42.70 | L116: 05 | M116: 19 | N116: 78.00 | O116: 31.20 | P116: 73.90
A117: 115 | B117: 2471303014412 | C117: 男 | D117: 041 | E117: 是 | F117: 少数民族考生 | G117: 2 | H117: 102.85 | I117: 70.57 | J117: 3 | K117: 42.34 | L117: 05 | M117: 18 | N117: 71.40 | O117: 28.56 | P117: 70.90
A118: 116 | B118: 2471302014006 | C118: 女 | D118: 041 | E118: 是 | F118: 少数民族考生 | G118: 2 | H118: 103.70 | I118: 71.13 | J118: 2 | K118: 42.68 | L118: 05 | M118: 9 | N118: 68.60 | O118: 27.44 | P118: 70.12
A119: 117 | B119: 2471306011117 | C119: 男 | D119: 042 | E119: 否 | H119: 87.44 | I119: 58.29 | J119: 1 | K119: 34.97 | L119: 05 | M119: 12 | N119: 79.80 | O119: 31.92 | P119: 66.89
A120: 118 | B120: 2471302010404 | C120: 女 | D120: 043 | E120: 是 | F120: 1.少数民族考生 | G120: 2 | H120: 104.61 | I120: 71.74 | J120: 1 | K120: 43.04 | L120: 05 | M120: 1 | N120: 72.20 | O120: 28.88 | P120: 71.92
A121: 119 | B121: 2471301011227 | C121: 男 | D121: 043 | E121: 是 | F121: 2.入伍时为兴仁市户籍或兴仁市生源的退役士兵报考非定向招聘退役士兵岗位 | G121: 10 | H121: 92.5 | I121: 71.67 | J121: 2 | K121: 43.00 | L121: 05 | M121: 8 | N121: 71.40 | O121: 28.56 | P121: 71.56
A122: 120 | B122: 2471304012730 | C122: 女 | D122: 043 | E122: 否 | H122: 105.38 | I122: 70.25 | J122: 3 | K122: 42.15 | L122: 05 | M122: 14 | N122: 69.80 | O122: 27.92 | P122: 70.07
A123: 121 | B123: 2471304013330 | C123: 女 | D123: 044 | E123: 无 | H123: 110.94 | I123: 73.96 | J123: 1 | K123: 44.38 | L123: 05 | M123: 13 | N123: 83.40 | O123: 33.36 | P123: 77.74
A124: 122 | B124: 2471305010119 | C124: 男 | D124: 044 | E124: 否 | H124: 103 | I124: 68.67 | J124: 2 | K124: 41.20 | L124: 05 | M124: 24 | N124: 73.40 | O124: 29.36 | P124: 70.56
A125: 123 | B125: 2471307012030 | C125: 女 | D125: 044 | E125: 否 | H125: 99.09 | I125: 66.06 | J125: 4 | K125: 39.64 | L125: 05 | M125: 28 | N125: 52.00 | O125: 20.80 | P125: 60.44
A126: 124 | B126: 2471307012412 | C126: 女 | D126: 045 | E126: 是 | F126: 1.少数民族考生 | G126: 2 | H126: 93.34 | I126: 64.23 | J126: 1 | K126: 38.54 | L126: 05 | M126: 27 | N126: 70.80 | O126: 28.32 | P126: 66.86
A127: 125 | B127: 2471301011422 | C127: 男 | D127: 046 | E127: 否 | H127: 98.9 | I127: 65.93 | J127: 2 | K127: 39.56 | L127: 05 | M127: 5 | N127: 72.80 | O127: 29.12 | P127: 68.68
A128: 126 | B128: 2471302013511 | C128: 女 | D128: 046 | E128: 否 | H128: 96.62 | I128: 64.41 | J128: 3 | K128: 38.65 | L128: 05 | M128: 25 | N128: 69.00 | O128: 27.60 | P128: 66.25
A129: 127 | B129: 2471302013425 | C129: 男 | D129: 046 | E129: 是 | F129: 1.少数民族考生 | G129: 2 | H129: 97.26 | I129: 66.84 | J129: 1 | K129: 40.10 | L129: 05 | M129: 10 | N129: 62.20 | O129: 24.88 | P129: 64.98
A130: 128 | B130: 2471302010425 | C130: 女 | D130: 047 | E130: 否 | H130: 100.4 | I130: 66.93 | J130: 1 | K130: 40.16 | L130: 06 | M130: 6 | N130: 82.40 | O130: 32.96 | P130: 73.12
A131: 129 | B131: 2471307013103 | C131: 女 | D131: 047 | E131: 否 | H131: 90.23 | I131: 60.15 | J131: 2 | K131: =I131*0.6 -> 36.09 | L131: 06 | M131: 27 | N131: 76.20 | O131: 30.48 | P131: =K131+O131 -> 66.57
A132: 130 | B132: 2471306014203 | C132: 男 | D132: 048 | E132: 否 | H132: 106.50 | I132: 71.00 | J132: 1 | K132: 42.60 | L132: 06 | M132: 2 | N132: 81.30 | O132: 32.52 | P132: 75.12
A133: 131 | B133: 2471305010712 | C133: 女 | D133: 048 | E133: 是 | F133: 1.少数民族考生 | G133: 2 | H133: 101.40 | I133: 69.60 | J133: 2 | K133: 41.76 | L133: 06 | M133: 1 | N133: 75.40 | O133: 30.16 | P133: 71.92
A134: 132 | B134: 2471307011708 | C134: 女 | D134: 048 | E134: 否 | H134: 100.26 | I134: 66.84 | J134: 3 | K134: 40.10 | L134: 06 | M134: 17 | N134: 76.20 | O134: 30.48 | P134: 70.58
A135: 133 | B135: 2471307010310 | C135: 男 | D135: 049 | E135: 否 | H135: 95.87 | I135: 63.91 | J135: 3 | K135: 38.35 | L135: 06 | M135: 3 | N135: 78.00 | O135: 31.20 | P135: 69.55
A136: 134 | B136: 2471307012020 | C136: 男 | D136: 049 | E136: 是 | F136: 1.少数民族考生 | G136: 2 | H136: 94.02 | I136: 64.68 | J136: 2 | K136: 38.81 | L136: 06 | M136: 16 | N136: 76.50 | O136: 30.60 | P136: 69.41
A137: 135 | B137: 2471302011814 | C137: 女 | D137: 049 | E137: 是 | F137: 1.少数民族考生 | G137: 2 | H137: 95.10 | I137: 65.40 | J137: 1 | K137: 39.24 | L137: 06 | M137: 14 | N137: 73.20 | O137: 29.28 | P137: 68.52
A138: 136 | B138: 2471303012417 | C138: 男 | D138: 050 | E138: 是 | F138: 1.少数民族考生 | G138: 2 | H138: 89.55 | I138: 61.70 | J138: 1 | K138: 37.02 | L138: 06 | M138: 13 | N138: 74.70 | O138: 29.88 | P138: 66.90
A139: 137 | B139: 2471305011514 | C139: 男 | D139: 050 | E139: 无 | H139: 85.51 | I139: 57.01 | J139: 3 | K139: 34.20 | L139: 06 | M139: 8 | N139: 77.10 | O139: 30.84 | P139: 65.04
A140: 138 | B140: 2471304012827 | C140: 男 | D140: 050 | E140: 是 | F140: 1.少数民族考生 | G140: 2 | H140: 84.93 | I140: 58.62 | J140: 2 | K140: 35.17 | L140: 06 | M140: 21 | N140: 73.90 | O140: 29.56 | P140: 64.73
A141: 139 | B141: 2471303010407 | C141: 女 | D141: 051 | E141: 否 | H141: 108.94 | I141: 72.63 | J141: 1 | K141: 43.58 | L141: 06 | M141: 22 | N141: 76.60 | O141: 30.64 | P141: 74.22
A142: 140 | B142: 2471307012925 | C142: 女 | D142: 051 | E142: 是 | F142: 1.少数民族考生 | G142: 2 | H142: 99.97 | I142: 68.65 | J142: 3 | K142: 41.19 | L142: 06 | M142: 4 | N142: 81.00 | O142: 32.40 | P142: 73.59
A143: 141 | B143: 2471305010124 | C143: 女 | D143: 051 | E143: 否 | H143: 107.67 | I143: 71.78 | J143: 2 | K143: 43.07 | L143: 06 | M143: 7 | N143: 70.40 | O143: 28.16 | P143: 71.23
A144: 142 | B144: 2471303010310 | C144: 男 | D144: 052 | E144: 否 | H144: 97.02 | I144: 64.68 | J144: 2 | K144: 38.81 | L144: 06 | M144: 19 | N144: 82.70 | O144: 33.08 | P144: 71.89
A145: 143 | B145: 2471301015610 | C145: 女 | D145: 052 | E145: 是 | F145: 1.少数民族考生 | G145: 2 | H145: 98.65 | I145: 67.77 | J145: 1 | K145: 40.66 | L145: 06 | M145: 20 | N145: 75.60 | O145: 30.24 | P145: 70.90
A146: 144 | B146: 2471303013327 | C146: 男 | D146: 052 | E146: 否 | H146: 94.11 | I146: 62.74 | J146: 3 | K146: 37.64 | L146: 06 | M146: 12 | N146: 65.80 | O146: 26.32 | P146: 63.96
A147: 145 | B147: 2471307012910 | C147: 女 | D147: 053 | E147: 否 | H147: 101.01 | I147: 67.34 | J147: 1 | K147: 40.40 | L147: 06 | M147: 5 | N147: 77.60 | O147: 31.04 | P147: 71.44
A148: 146 | B148: 2471303012409 | C148: 男 | D148: 053 | E148: 是 | F148: 1.少数民族考生 | G148: 2 | H148: 97.90 | I148: 67.27 | J148: 2 | K148: 40.36 | L148: 06 | M148: 11 | N148: 76.50 | O148: 30.60 | P148: 70.96
A149: 147 | B149: 2471305011617 | C149: 女 | D149: 053 | E149: 是 | F149: 1.少数民族考生 | G149: 2 | H149: 97.90 | I149: 67.27 | J149: 2 | K149: 40.36 | L149: 06 | M149: 25 | N149: 73.80 | O149: 29.52 | P149: 69.88
A150: 148 | B150: 2471302012805 | C150: 女 | D150: 054 | E150: 否 | H150: 105.53 | I150: 70.35 | J150: 1 | K150: 42.21 | L150: 06 | M150: 10 | N150: 84.60 | O150: 33.84 | P150: 76.05
A151: 149 | B151: 2471307013328 | C151: 女 | D151: 054 | E151: 否 | F151: 1.少数民族考生 | G151: 2 | H151: 95.93 | I151: 65.95 | J151: 2 | K151: 39.57 | L151: 06 | M151: 23 | N151: 73.40 | O151: 29.36 | P151: 68.93
A152: 150 | B152: 2471303010422 | C152: 男 | D152: 054 | E152: 否 | H152: 90.45 | I152: 60.30 | J152: 5 | K152: 36.18 | L152: 06 | M152: 9 | N152: 70.50 | O152: 28.20 | P152: 64.38
A153: 151 | B153: 2471302014019 | C153: 女 | D153: 055 | E153: 是 | F153: 1.少数民族考生 | G153: 2 | H153: 98.38 | I153: 67.59 | J153: 1 | K153: 40.55 | L153: 06 | M153: 24 | N153: 76.40 | O153: 30.56 | P153: 71.11
A154: 152 | B154: 2471307012614 | C154: 男 | D154: 056 | E154: 是 | F154: 1.少数民族考生 | G154: 2 | H154: 109.84 | I154: 75.23 | J154: 1 | K154: 45.14 | L154: 06 | M154: 15 | N154: 77.50 | O154: 31.00 | P154: 76.14
A155: 153 | B155: 2471302011827 | C155: 女 | D155: 056 | E155: 是 | F155: 1.少数民族考生 | G155: 2 | H155: 98.96 | I155: 67.97 | J155: 2 | K155: 40.78 | L155: 06 | M155: 18 | N155: 84.80 | O155: 33.92 | P155: 74.70
A156: 154 | B156: 2471306011312 | C156: 男 | D156: 056 | E156: 否 | H156: 94.99 | I156: 63.33 | J156: 3 | K156: 38.00 | L156: 06 | M156: 26 | N156: 71.60 | O156: 28.64 | P156: 66.64
A157: 155 | B157: 2471305012126 | C157: 男 | D157: 057 | E157: 是 | F157: 1.少数民族考生 | G157: 2 | H157: 115.77 | I157: 79.18 | J157: 1 | K157: 47.51 | L157: 07 | M157: 17 | N157: 76.80 | O157: 30.72 | P157: 78.23
A158: 156 | B158: 2471307012217 | C158: 男 | D158: 057 | E158: 否 | H158: 110.44 | I158: 73.63 | J158: 2 | K158: 44.18 | L158: 07 | M158: 25 | N158: 74.40 | O158: 29.76 | P158: 73.94
A159: 157 | B159: 2471302011002 | C159: 女 | D159: 057 | E159: 是 | F159: 1.少数民族考生 | G159: 2 | H159: 106.56 | I159: 73.04 | J159: 3 | K159: 43.82 | L159: 07 | M159: 23 | N159: 74.40 | O159: 29.76 | P159: 73.58
A160: 158 | B160: 2471304011226 | C160: 男 | D160: 058 | E160: 否 | H160: 103.24 | I160: 68.83 | J160: 1 | K160: 41.30 | L160: 07 | M160: 13 | N160: 71.60 | O160: 28.64 | P160: 69.94
A161: 159 | B161: 2471305011002 | C161: 男 | D161: 058 | E161: 是 | F161: 1.少数民族考生 | G161: 2 | H161: 98.64 | I161: 67.76 | J161: 2 | K161: 40.66 | L161: 07 | M161: 19 | N161: 69.00 | O161: 27.60 | P161: 68.26
A162: 160 | B162: 2471306014226 | C162: 女 | D162: 058 | E162: 否 | H162: 98.61 | I162: 65.74 | J162: 3 | K162: 39.44 | L162: 07 | M162: 26 | N162: 72.00 | O162: 28.80 | P162: 68.24
A163: 161 | B163: 2471307010909 | C163: 女 | D163: 059 | E163: 是 | F163: 1.少数民族考生 | G163: 2 | H163: 102.79 | I163: 70.53 | J163: 1 | K163: 42.32 | L163: 07 | M163: 15 | N163: 71.20 | O163: 28.48 | P163: 70.80
A164: 162 | B164: 2471307011115 | C164: 女 | D164: 059 | E164: 否 | H164: 105.36 | I164: 70.24 | J164: 2 | K164: 42.14 | L164: 07 | M164: 20 | N164: 71.60 | O164: 28.64 | P164: 70.78
A165: 163 | B165: 2471305011227 | C165: 男 | D165: 059 | E165: 否 | H165: 104.82 | I165: 69.88 | J165: 3 | K165: 41.93 | L165: 07 | M165: 7 | N165: 70.20 | O165: 28.08 | P165: 70.01
A166: 164 | B166: 2471304010215 | C166: 男 | D166: 060 | E166: 否 | H166: 107.00 | I166: 71.33 | J166: 2 | K166: 42.80 | L166: 07 | M166: 16 | N166: 83.80 | O166: 33.52 | P166: 76.32
A167: 165 | B167: 2471301012028 | C167: 女 | D167: 060 | E167: 否 | H167: 104.24 | I167: 69.49 | J167: 3 | K167: 41.70 | L167: 07 | M167: 8 | N167: 75.60 | O167: 30.24 | P167: 71.94
A168: 166 | B168: 2471307013613 | C168: 男 | D168: 060 | E168: 否 | H168: 110.09 | I168: 73.39 | J168: 1 | K168: 44.04 | L168: 07 | M168: 24 | N168: 68.40 | O168: 27.36 | P168: 71.40
A169: 167 | B169: 2471308023202 | C169: 女 | D169: 061 | E169: 否 | H169: 106.06 | I169: 70.71 | J169: 3 | K169: 42.42 | L169: 01 | M169: 15 | N169: 80.00 | O169: =N169*0.4 -> 32.00 | P169: 74.42
A170: 168 | B170: 2471308022818 | C170: 男 | D170: 061 | E170: 是 | F170: 入伍时为兴仁市户籍或兴仁市生源的退役士兵报考非定向招聘退役士兵岗位 | G170: 10 | H170: 94.50 | I170: 73.00 | J170: 1 | K170: 43.80 | L170: 01 | M170: 14 | N170: 64.00 | O170: 25.60 | P170: 69.40
A171: 169 | B171: 2471308022404 | C171: 女 | D171: 061 | E171: 是 | F171: 少数民族考生 | G171: 2 | H171: 104.47 | I171: 71.65 | J171: 2 | K171: 42.99 | L171: 01 | M171: 18 | N171: 62.60 | O171: 25.04 | P171: 68.03
A172: 170 | B172: 2471308023721 | C172: 女 | D172: 062 | E172: 否 | H172: 82.66 | I172: 55.11 | J172: 1 | K172: 33.06 | L172: 01 | M172: 13 | N172: 69.80 | O172: 27.92 | P172: 60.98
A173: 171 | B173: 2471308021810 | C173: 男 | D173: 063 | E173: 否 | H173: 100.85 | I173: 67.23 | J173: 2 | K173: 40.34 | L173: 01 | M173: 12 | N173: 79.60 | O173: 31.84 | P173: 72.18
A174: 172 | B174: 2471308022106 | C174: 女 | D174: 063 | E174: 否 | H174: 102.02 | I174: 68.01 | J174: 1 | K174: 40.81 | L174: 01 | M174: 17 | N174: 70.40 | O174: 28.16 | P174: 68.97
A175: 173 | B175: 2471308023716 | C175: 男 | D175: 063 | E175: 否 | H175: 96.79 | I175: 64.53 | J175: 3 | K175: 38.72 | L175: 01 | M175: 缺考 | N175: 0.00 | O175: 0.00 | P175: 38.72
A176: 174 | B176: 2471308023710 | C176: 男 | D176: 064 | E176: 否 | H176: 105.96 | I176: 70.64 | J176: 1 | K176: 42.38 | L176: 01 | M176: 19 | N176: 75.40 | O176: 30.16 | P176: 72.54
A177: 175 | B177: 2471308022210 | C177: 女 | D177: 064 | E177: 是 | F177: 少数民族考生 | G177: 2 | H177: 93.84 | I177: 64.56 | J177: 2 | K177: 38.74 | L177: 01 | M177: 11 | N177: 69.00 | O177: 27.60 | P177: 66.34
A178: 176 | B178: 2471308023526 | C178: 女 | D178: 065 | E178: 是 | F178: 少数民族考生 | G178: 2 | H178: 97.71 | I178: 67.14 | J178: 3 | K178: 40.28 | L178: 01 | M178: 9 | N178: 81.60 | O178: 32.64 | P178: 72.92
A179: 177 | B179: 2471308022513 | C179: 女 | D179: 065 | E179: 是 | F179: 少数民族考生 | G179: 2 | H179: 102.14 | I179: 70.09 | J179: 1 | K179: 42.06 | L179: 01 | M179: 2 | N179: 75.40 | O179: 30.16 | P179: 72.22
A180: 178 | B180: 2471308023029 | C180: 女 | D180: 065 | E180: 否 | H180: 101.28 | I180: 67.52 | J180: 2 | K180: 40.51 | L180: 01 | M180: 21 | N180: 76.20 | O180: 30.48 | P180: 70.99
A181: 179 | B181: 2471308023111 | C181: 女 | D181: 066 | E181: 否 | H181: 94.08 | I181: 62.72 | J181: 1 | K181: 37.63 | L181: 01 | M181: 5 | N181: 77.20 | O181: 30.88 | P181: 68.51
A182: 180 | B182: 2471308023830 | C182: 男 | D182: 066 | E182: 是 | F182: 少数民族考生 | G182: 2 | H182: 90.13 | I182: 62.09 | J182: 2 | K182: 37.25 | L182: 01 | M182: 3 | N182: 69.20 | O182: 27.68 | P182: 64.93
A183: 181 | B183: 2471308023320 | C183: 女 | D183: 067 | E183: 是 | F183: 少数民族考生 | G183: 2 | H183: 98.02 | I183: 67.35 | J183: 3 | K183: 40.41 | L183: 01 | M183: 8 | N183: 85.80 | O183: 34.32 | P183: 74.73
A184: 182 | B184: 2471308022526 | C184: 女 | D184: 067 | E184: 是 | F184: 少数民族考生 | G184: 2 | H184: 102.00 | I184: 70.00 | J184: 1 | K184: 42.00 | L184: 01 | M184: 7 | N184: 72.00 | O184: 28.80 | P184: 70.80
A185: 183 | B185: 2471308022127 | C185: 女 | D185: 067 | E185: 否 | H185: 103.97 | I185: 69.31 | J185: 2 | K185: 41.59 | L185: 01 | M185: 20 | N185: 69.80 | O185: 27.92 | P185: 69.51
A186: 184 | B186: 2471308023912 | C186: 女 | D186: 068 | E186: 否 | H186: 92.48 | I186: 61.65 | J186: 2 | K186: 36.99 | L186: 01 | M186: 16 | N186: 82.80 | O186: 33.12 | P186: 70.11
A187: 185 | B187: 2471308023824 | C187: 女 | D187: 068 | E187: 否 | H187: 95.81 | I187: 63.87 | J187: 1 | K187: 38.32 | L187: 01 | M187: 1 | N187: 72.80 | O187: 29.12 | P187: 67.44
A188: 186 | B188: 2471308022716 | C188: 男 | D188: 069 | E188: 是 | F188: 少数民族考生 | G188: 2 | H188: 96.32 | I188: 66.21 | J188: 1 | K188: 39.73 | L188: 01 | M188: 6 | N188: 69.00 | O188: 27.60 | P188: 67.33
A189: 187 | B189: 2471308022113 | C189: 男 | D189: 069 | E189: 是 | F189: 少数民族考生 | G189: 2 | H189: 90.97 | I189: 62.65 | J189: 3 | K189: 37.59 | L189: 01 | M189: 24 | N189: 71.00 | O189: 28.40 | P189: 65.99
A190: 188 | B190: 2471308021902 | C190: 女 | D190: 069 | E190: 是 | F190: 少数民族考生 | G190: 2 | H190: 88.07 | I190: 60.71 | J190: 4 | K190: 36.43 | L190: 01 | M190: 4 | N190: 66.00 | O190: 26.40 | P190: 62.83
A191: 189 | B191: 2471308023417 | C191: 女 | D191: 070 | E191: 否 | H191: 96.70 | I191: 64.47 | J191: 3 | K191: 38.68 | L191: 01 | M191: 22 | N191: 83.60 | O191: 33.44 | P191: 72.12
A192: 190 | B192: 2471308023319 | C192: 女 | D192: 070 | E192: 否 | H192: 100.69 | I192: 67.13 | J192: 1 | K192: 40.28 | L192: 01 | M192: 23 | N192: 67.00 | O192: 26.80 | P192: 67.08
A193: 191 | B193: 2471308023129 | C193: 女 | D193: 070 | E193: 否 | H193: 97.62 | I193: 65.08 | J193: 2 | K193: 39.05 | L193: 01 | M193: 10 | N193: 67.60 | O193: 27.04 | P193: 66.09
A194: 192 | B194: 2471310030206 | C194: 男 | D194: 071 | H194: 100.95 | I194: 67.30 | J194: 2 | K194: =I194*0.6 -> 40.38 | L194: 09 | M194: 3 | N194: 88.63 | O194: =N194*0.4 -> 35.45 | P194: =K194+O194 -> 75.83
A195: 193 | B195: 2471309031311 | C195: 女 | D195: 071 | H195: 102.5 | I195: 68.33 | J195: 1 | K195: =I195*0.6 -> 41.00 | L195: 09 | M195: 1 | N195: 84.07 | O195: 33.63 | P195: =K195+O195 -> 74.63
A196: 194 | B196: 2471309033117 | C196: 女 | D196: 071 | H196: 96.35 | I196: 64.23 | J196: 3 | K196: =I196*0.6 -> 38.54 | L196: 09 | M196: 2 | N196: 85.71 | O196: =N196*0.4 -> 34.28 | P196: =K196+O196 -> 72.82
A197: 195 | B197: 2471309032627 | C197: 男 | D197: 072 | E197: 是 | F197: 1.少数民族考生 | G197: 2 | H197: 98.37 | I197: 67.58 | J197: 1 | K197: =I197*0.6 -> 40.55 | L197: 08 | M197: 1 | N197: 87.24 | O197: =N197*0.4 -> 34.90 | P197: =K197+O197 -> 75.44
A198: 196 | B198: 2471309032808 | C198: 男 | D198: 072 | E198: 是 | F198: 1.少数民族考生 | G198: 2 | H198: 91.55 | I198: 63.03 | J198: 3 | K198: =I198*0.6 -> 37.82 | L198: 08 | M198: 2 | N198: 82.72 | O198: 33.09 | P198: =K198+O198 -> 70.91
A199: 197 | B199: 2471309033503 | C199: 男 | D199: 072 | E199: 是 | F199: 1.少数民族考生 | G199: 2 | H199: 91.63 | I199: 63.09 | J199: 2 | K199: =I199*0.6 -> 37.85 | L199: 08 | M199: 缺考 | N199: 0.00 | O199: =N199*0.4 -> 0.00 | P199: =K199+O199 -> 37.85
A200: 198 | B200: 2471309034327 | C200: 女 | D200: 073 | H200: 98.55 | I200: 65.70 | J200: 1 | K200: =I200*0.6 -> 39.42 | L200: 09 | M200: 2 | N200: 92.96 | O200: =N200*0.4 -> 37.18 | P200: =K200+O200 -> 76.60
... 72 more rows
